bitfinex-derivatives/quotes_SOLF0:USTF0_20220109
["timestamp","ask_amount","ask_price","bid_price","bid_amount"]
[1641699863267,4.0,142.38,142.25,7.02691308]
[1641699863468,4.0,142.35,142.22,89.0]
[1641699863670,6.427,142.35,142.23,4.0]
[1641699864068,6.427,142.35,142.24,4.0]
[1641699864268,6.427,142.35,142.3,27.66479]
[1641699866172,27.66479,142.38,142.3,27.66479]
[1641699866370,45.1014,142.39,142.3,27.66479]
[1641699867976,38.30479,142.41,142.3,27.66479]
[1641699868177,27.66479,142.41,142.3,27.66479]
[1641699868376,43.4074,142.42,142.35,27.66479]
[1641699868778,27.66479,142.45,142.35,27.66479]
[1641699868977,27.66479,142.45,142.35,31.66479]
[1641699869179,27.66479,142.45,142.35,27.66479]
[1641699870279,31.66479,142.45,142.35,27.66479]
[1641699870479,27.66479,142.45,142.35,27.66479]
[1641699870681,31.66479,142.45,142.35,27.66479]
[1641699871285,31.66479,142.45,142.36,2.67782181]
[1641699873886,82.64879,142.48,142.36,2.67782181]
[1641699874084,44.284,142.48,142.37,11.02123925]
[1641699874286,44.284,142.48,142.44,27.66479]
[1641699874483,14.83330219,142.49,142.44,34.49079]
[1641699875084,90.72489219,142.52,142.44,34.49079]
[1641699875284,4.0,142.51,142.44,6.826]
[1641699875484,4.0,142.51,142.42,27.66479]
[1641699875687,90.72489219,142.52,142.42,27.66479]
[1641699875885,86.72489219,142.52,142.42,27.66479]
[1641699876185,71.89159,142.52,142.42,27.66479]
[1641699876386,71.89159,142.52,142.45,27.66479]
[1641699877588,75.89159,142.52,142.45,27.66479]
[1641699877789,75.89159,142.52,142.42,27.66479]
[1641699877988,79.83759,142.52,142.42,27.66479]
[1641699878188,83.83759,142.52,142.42,27.66479]
[1641699878388,2.2757779,142.51,142.42,27.66479]
[1641699880393,4.0,142.49,142.42,27.66479]
[1641699881495,75.89159,142.52,142.42,27.66479]
[1641699881894,4.0,142.49,142.42,27.66479]
[1641699882094,8.625,142.49,142.42,27.66479]
[1641699882496,27.66479,142.48,142.42,27.66479]
[1641699883095,4.0,142.46,142.39,27.66479]
[1641699883295,10.456,142.46,142.39,27.66479]
[1641699884096,6.456,142.46,142.39,27.66479]
[1641699884296,42.49809219,142.52,142.39,27.66479]
[1641699884497,14.83330219,142.51,142.45,27.66479]
[1641699884695,14.83330219,142.51,142.45,34.30179]
[1641699885696,43.6215,142.53,142.45,34.30179]
[1641699886497,43.6215,142.53,142.5,27.66479]
[1641699886698,42.49809219,142.57,142.5,27.66479]
[1641699887098,53.07809219,142.57,142.5,27.66479]
[1641699887297,4.0,142.55,142.45,27.66479]
[1641699887997,6.27234316,142.56,142.45,27.66479]
[1641699888198,4.0,142.55,142.45,27.66479]
[1641699888397,4.0,142.53,142.45,27.66479]
[1641699888598,27.66479,142.5,142.41,7.01902155]
[1641699888799,33.41079,142.5,142.41,7.01902155]
[1641699889798,33.41079,142.5,142.4,27.66479]
[1641699889998,4.0,142.46,142.38,27.66479]
[1641699890198,11.807,142.46,142.38,27.66479]
[1641699890398,7.807,142.46,142.38,27.66479]
[1641699893300,7.807,142.46,142.39,2.67702343]
[1641699894303,43.3804,142.51,142.39,6.67702343]
[1641699894502,43.3804,142.51,142.39,2.67702343]
[1641699894702,71.04519,142.51,142.42,27.66479]
[1641699897704,75.04519,142.51,142.42,27.66479]
[1641699897903,2.28008427,142.5,142.43,2.68477868]
[1641699898104,8.99008427,142.5,142.43,2.68477868]
[1641699898905,4.0,142.47,142.43,2.68477868]
[1641699899105,2.28008427,142.49,142.43,2.68477868]
[1641699899506,4.0,142.5,142.43,2.68477868]
[1641699899805,18.83330219,142.5,142.4,7.478]
[1641699900507,4.0,142.5,142.41,2.68477868]
[1641699900706,71.04519,142.51,142.43,27.66479]
[1641699900908,21.05030219,142.53,142.43,35.59779]
[1641699901307,21.05030219,142.53,142.43,39.59779]
[1641699901508,21.05030219,142.53,142.44,2.68477868]
[1641699902307,6.217,142.53,142.44,2.68477868]
[1641699902509,10.217,142.53,142.44,2.68477868]
[1641699902708,4.0,142.52,142.44,2.68477868]
[1641699902909,6.217,142.53,142.44,2.68477868]
[1641699903207,17.11421579,142.52,142.44,8.53677868]
[1641699904421,2.2809136,142.52,142.45,2.68477868]
[1641699905211,29.9457036,142.54,142.44,2.68477868]
[1641699905612,33.9457036,142.54,142.44,2.68477868]
[1641699905813,29.9457036,142.54,142.44,2.68477868]
[1641699906214,33.9457036,142.54,142.44,2.68477868]
[1641699906513,4.0,142.51,142.44,2.68477868]
[1641699906713,4.0,142.49,142.44,2.68477868]
[1641699907014,31.66479,142.49,142.44,2.68477868]
[1641699907213,2.2809136,142.48,142.37,30.34956868]
[1641699908214,2.2809136,142.48,142.38,2.68477868]
[1641699908514,2.2809136,142.48,142.39,7.02025343]
[1641699908916,14.83330219,142.49,142.42,27.66479]
[1641699909114,42.2554,142.5,142.42,27.66479]
[1641699910017,42.2554,142.5,142.43,2.68477868]
[1641699910815,27.66479,142.47,142.43,2.68477868]
[1641699911618,42.2554,142.5,142.43,2.68477868]
[1641699911817,42.2554,142.5,142.41,13.68926789]
[1641699912017,14.83330219,142.49,142.41,13.68926789]
[1641699912821,42.2554,142.5,142.43,27.66479]
[1641699913417,42.2554,142.5,142.42,2.68477868]
[1641699913620,42.2554,142.5,142.39,10.46949164]
[1641699913819,2.27984448,142.49,142.39,10.46949164]
[1641699914620,2.27984448,142.49,142.39,2.6849128]
[1641699914820,2.27984448,142.49,142.44,27.66479]
[1641699915423,42.2554,142.5,142.44,27.66479]
[1641699916422,42.2554,142.5,142.4,10.47023789]
[1641699916921,42.2554,142.5,142.41,27.66479]
[1641699917222,2.28104332,142.49,142.41,27.66479]
[1641699918123,42.2554,142.5,142.42,2.68588598]
[1641699918326,42.2554,142.5,142.42,10.19088598]
[1641699918525,42.2554,142.5,142.42,14.19088598]
[1641699918727,14.83330219,142.52,142.42,17.2094149]
[1641699919025,14.83330219,142.53,142.45,27.66479]
[1641699919225,14.83330219,142.53,142.45,34.67379]
[1641699920027,2.27994925,142.53,142.46,2.68588598]
[1641699924432,14.83330219,142.54,142.48,4.0]
[1641699924736,14.83330219,142.56,142.49,4.0]
[1641699924935,14.83330219,142.56,142.55,27.66479]
[1641699925133,14.83330219,142.56,142.55,34.89179]
[1641699925835,39.35301247,142.59,142.55,34.89179]
[1641699926033,2.27872606,142.6,142.55,34.89179]
[1641699927033,2.27872606,142.6,142.58,27.66479]
[1641699927234,5.876,142.61,142.58,27.66479]
[1641699928736,70.89319,142.66,142.58,36.14979]
[1641699928937,43.2284,142.66,142.58,36.14979]
[1641699930536,4.0,142.65,142.58,8.485]
[1641699930738,43.2284,142.66,142.55,69.06569]
[1641699931036,27.66479,142.65,142.55,69.06569]
[1641699931439,29.93189527,142.65,142.55,69.06569]
[1641699931635,29.93189527,142.65,142.55,27.66479]
[1641699932335,22.19426001,142.64,142.55,27.66479]
[1641699932936,2.26710527,142.64,142.55,27.66479]
[1641699933235,27.66479,142.65,142.55,27.66479]
[1641699937945,31.66479,142.65,142.55,27.66479]
[1641699938148,4.0,142.64,142.55,27.66479]
[1641699938449,4.0,142.63,142.53,27.66479]
[1641699938847,4.0,142.64,142.53,27.66479]
[1641699939247,4.0,142.63,142.53,27.66479]
[1641699939851,4.0,142.64,142.53,27.66479]
[1641699940150,4.0,142.63,142.53,27.66479]
[1641699940850,4.0,142.61,142.53,27.66479]
[1641699941052,27.66479,142.6,142.51,27.66479]
[1641699941253,4.0,142.56,142.49,27.66479]
[1641699941451,4.0,142.55,142.42,11.01852892]
[1641699942350,4.0,142.55,142.43,2.670318]
[1641699942551,4.0,142.53,142.43,2.670318]
[1641699942752,4.0,142.51,142.43,2.670318]
[1641699943052,27.66479,142.5,142.43,2.670318]
[1641699943252,27.66479,142.5,142.41,27.66479]
[1641699947057,71.66779,142.53,142.44,27.66479]
[1641699950560,82.30779,142.53,142.44,27.66479]
[1641699950962,4.0,142.52,142.41,27.66479]
[1641699951161,31.66479,142.5,142.41,27.66479]
[1641699951364,39.41379,142.5,142.41,27.66479]
[1641699951563,35.41379,142.5,142.41,27.66479]
[1641699951962,39.41379,142.5,142.41,27.66479]
[1641699952363,35.41379,142.5,142.41,27.66479]
[1641699952764,82.30779,142.53,142.41,27.66479]
[1641699953362,82.30779,142.53,142.41,31.66479]
[1641699953864,82.30779,142.53,142.41,27.66479]
[1641699958774,82.30779,142.53,142.41,31.66479]
[1641699959075,82.30779,142.53,142.41,27.66479]
[1641699959476,86.30779,142.53,142.41,27.66479]
[1641699961076,4.0,142.51,142.41,27.66479]
[1641699961277,4.0,142.5,142.36,42.9865]
[1641699961479,27.66479,142.48,142.38,27.66479]
[1641699961677,31.66479,142.48,142.38,27.66479]
[1641699961880,4.0,142.47,142.38,27.66479]
[1641699962080,36.9532,142.46,142.38,27.66479]
[1641699962677,36.9532,142.46,142.37,2.67282025]
[1641699962878,36.9532,142.46,142.35,7.02197879]
[1641699963478,27.66479,142.45,142.35,34.68676879]
[1641699963879,27.66479,142.45,142.36,2.67527926]
[1641699964580,31.66479,142.45,142.36,2.67527926]
[1641699968684,27.66479,142.45,142.36,2.67527926]
[1641699969086,36.9532,142.46,142.36,2.67527926]
[1641699969284,36.9532,142.46,142.36,15.20227926]
[1641699969584,42.46802237,142.5,142.42,27.66479]
[1641699969785,52.19673237,142.5,142.42,35.62479]
[1641699969985,37.3935,142.5,142.42,35.62479]
[1641699971387,37.3935,142.5,142.43,2.67527926]
[1641699973789,37.3935,142.5,142.42,27.66479]
[1641699973991,37.3935,142.5,142.42,31.66479]
[1641699974191,37.3935,142.5,142.42,34.68331892]
[1641699974393,14.80323237,142.52,142.46,4.0]
[1641699974992,27.66479,142.54,142.46,11.01655908]
[1641699975191,27.66479,142.54,142.47,4.0]
[1641699975392,14.80323237,142.55,142.46,11.01655908]
[1641699975591,14.80323237,142.55,142.47,4.0]
[1641699975791,14.80323237,142.55,142.51,27.66479]
[1641699975991,14.80323237,142.58,142.51,27.66479]
[1641699976592,14.80323237,142.58,142.52,4.0]
[1641699977297,2.27550424,142.58,142.52,4.0]
[1641699977494,2.27550424,142.58,142.53,4.0]
[1641699977694,2.27550424,142.58,142.55,27.66479]
[1641699978200,10.48,142.61,142.55,27.66479]
[1641699980502,10.48,142.61,142.51,34.67913433]
[1641699980702,17.532,142.61,142.51,27.66479]
[1641699981405,21.532,142.61,142.51,27.66479]
[1641699981602,17.532,142.61,142.51,27.66479]
[1641699981901,29.93227363,142.6,142.51,27.66479]
[1641699982903,27.66479,142.6,142.51,27.66479]
[1641699983104,31.66479,142.6,142.51,27.66479]
[1641699983304,4.0,142.59,142.51,27.66479]
[1641699983506,4.0,142.58,142.51,27.66479]
[1641699983906,35.79797553,142.59,142.51,27.66479]
[1641699985005,4.0,142.56,142.44,76.5031]
[1641699985608,98.939115,142.59,142.44,76.5031]
[1641699985806,27.66479,142.56,142.45,27.66479]
[1641699986207,31.66479,142.56,142.45,27.66479]
[1641699987009,27.66479,142.56,142.45,27.66479]
[1641699987808,55.32958,142.56,142.45,27.66479]
[1641699990611,4.0,142.52,142.45,27.66479]
[1641699990813,4.0,142.52,142.43,27.66479]
[1641699991010,23.94036506,142.55,142.43,27.66479]
[1641699991212,19.94036506,142.55,142.43,27.66479]
[1641699991612,2.26823061,142.54,142.43,27.66479]
[1641699991812,2.26823061,142.54,142.43,55.32958]
[1641699992211,2.26823061,142.54,142.43,59.32958]
[1641699992412,2.26823061,142.55,142.43,59.32958]
[1641699993013,55.32958,142.56,142.43,59.32958]
[1641699993615,65.98958,142.56,142.43,59.32958]
[1641699993816,55.32958,142.56,142.47,27.66479]
[1641699994417,27.66479,142.56,142.47,27.66479]
[1641699994815,14.80323237,142.58,142.47,27.66479]
[1641699995016,73.1176,142.59,142.47,27.66479]
[1641699995619,73.1176,142.59,142.47,31.66479]
[1641699995818,73.1176,142.59,142.47,55.32958]
[1641699995819,29.93455941,142.58,142.47,55.32958]
[1641699996921,2.26976941,142.57,142.47,55.32958]
[1641699997926,2.26976941,142.57,142.5,27.66479]
[1641699998822,2.26976941,142.57,142.47,27.66479]
[1641699999424,17.07300178,142.57,142.47,27.66479]
[1641699999623,21.07300178,142.57,142.47,27.66479]
[1641699999824,27.66479,142.55,142.47,27.66479]
[1641700001427,2.26976941,142.54,142.47,27.66479]
[1641700001827,2.26976941,142.54,142.5,27.66479]
[1641700002429,2.26976941,142.57,142.5,27.66479]
[1641700005834,2.26976941,142.58,142.5,27.66479]
[1641700006035,2.26976941,142.58,142.52,4.0]
[1641700006433,2.26976941,142.58,142.51,7.01409834]
[1641700006634,14.80323237,142.6,142.51,7.01409834]
[1641700007034,10.48,142.61,142.53,2.68157756]
[1641700007936,10.48,142.61,142.54,27.66479]
[1641700008135,17.08197005,142.6,142.54,27.66479]
[1641700008536,23.98997005,142.6,142.54,27.66479]
[1641700008938,9.18673768,142.6,142.54,27.66479]
[1641700009739,2.27873768,142.59,142.54,27.66479]
[1641700010741,17.08197005,142.59,142.54,27.66479]
[1641700013643,2.27873768,142.59,142.54,27.66479]
[1641700015244,2.27873768,142.59,142.5,27.66479]
[1641700015444,35.34153768,142.59,142.5,27.66479]
[1641700015643,2.27873768,142.59,142.51,4.0]
[1641700016043,2.27873768,142.59,142.54,27.66479]
[1641700016244,2.27873768,142.58,142.54,27.66479]
[1641700017147,21.71123237,142.6,142.54,27.66479]
[1641700017347,6.908,142.6,142.54,27.66479]
[1641700021956,6.908,142.6,142.54,31.66479]
[1641700022159,6.908,142.6,142.59,27.66479]
[1641700022358,10.48,142.61,142.59,27.66479]
[1641700022858,14.80323237,142.64,142.59,27.66479]
[1641700023058,34.7634,142.66,142.59,27.66479]
[1641700023861,17.0778716,142.65,142.59,27.66479]
[1641700026266,17.0778716,142.65,142.58,5.393]
[1641700027565,34.72973204,142.64,142.58,5.393]
[1641700028164,14.80323237,142.64,142.58,5.393]
[1641700028365,17.0778716,142.63,142.58,5.393]
[1641700029164,14.80323237,142.63,142.58,5.393]
[1641700029865,19.92954752,142.62,142.58,5.393]
[1641700030164,14.80323237,142.61,142.58,5.393]
[1641700031367,17.0778716,142.61,142.58,5.393]
[1641700032264,17.0778716,142.63,142.58,5.393]
[1641700033366,14.80323237,142.62,142.58,5.393]
[1641700034166,14.80323237,142.62,142.54,31.66479]
[1641700034366,14.80323237,142.62,142.59,27.66479]
[1641700035167,14.80323237,142.64,142.59,27.66479]
[1641700036167,14.80323237,142.64,142.54,27.66479]
[1641700036567,4.0,142.62,142.54,27.66479]
[1641700036769,14.80323237,142.61,142.54,27.66479]
[1641700036969,23.13623237,142.61,142.52,27.66479]
[1641700037871,17.0778716,142.6,142.52,27.66479]
[1641700038571,21.0778716,142.6,142.48,27.66479]
[1641700038773,7.01852892,142.59,142.48,27.66479]
[1641700038975,14.80323237,142.58,142.48,27.66479]
[1641700039174,34.8114,142.57,142.48,27.66479]
[1641700039373,38.8114,142.57,142.48,27.66479]
[1641700039875,19.93600105,142.56,142.48,27.66479]
[1641700040072,14.80323237,142.55,142.48,27.66479]
[1641700040975,2.27463923,142.55,142.48,27.66479]
[1641700041876,2.27463923,142.56,142.48,27.66479]
[1641700043574,2.27463923,142.56,142.48,31.66479]
[1641700043975,2.27463923,142.56,142.49,4.0]
[1641700044175,2.27463923,142.56,142.49,11.01508243]
[1641700044375,33.8672,142.59,142.54,27.66479]
[1641700044875,14.80323237,142.61,142.54,27.66479]
[1641700045077,47.38453237,142.61,142.54,27.66479]
[1641700045477,32.5813,142.61,142.54,27.66479]
[1641700046281,2.27667837,142.6,142.54,27.66479]
[1641700048182,17.07991074,142.6,142.54,27.66479]
[1641700049083,2.27667837,142.6,142.54,27.66479]
[1641700049885,17.07991074,142.6,142.54,27.66479]
[1641700050088,19.93135531,142.59,142.54,27.66479]
[1641700050486,19.93135531,142.59,142.5,27.66479]
[1641700050685,2.27667837,142.58,142.5,27.66479]
[1641700052185,17.07991074,142.59,142.5,27.66479]
[1641700052386,14.80323237,142.58,142.5,27.66479]
[1641700052589,34.73623599,142.58,142.5,27.66479]
[1641700053091,2.27667837,142.57,142.5,27.66479]
[1641700053891,2.27667837,142.58,142.5,27.66479]
[1641700054291,19.93356353,142.57,142.5,27.66479]
[1641700055293,2.27667837,142.58,142.5,27.66479]
[1641700055995,17.07991074,142.58,142.5,27.66479]
[1641700057096,4.0,142.55,142.5,27.66479]
[1641700057297,4.0,142.56,142.5,27.66479]
[1641700057498,4.0,142.56,142.48,27.66479]
[1641700057699,34.0887,142.56,142.48,27.66479]
[1641700058403,2.27667837,142.55,142.48,27.66479]
[1641700059802,34.0887,142.56,142.48,27.66479]
[1641700061004,2.27756652,142.55,142.48,27.66479]
[1641700063412,34.0887,142.56,142.48,27.66479]
[1641700064412,2.27812458,142.55,142.48,27.66479]
[1641700065316,2.27812458,142.55,142.46,27.66479]
[1641700065516,4.0,142.54,142.46,27.66479]
[1641700065716,23.9381675,142.54,142.4,7.01951425]
[1641700066117,34.74139987,142.54,142.4,7.01951425]
[1641700066415,14.80323237,142.54,142.43,4.0]
[1641700066617,14.80323237,142.54,142.4,12.77351425]
[1641700066815,27.66479,142.53,142.44,27.66479]
[1641700067618,34.2434,142.52,142.44,27.66479]
[1641700068618,34.2434,142.52,142.45,2.68514751]
[1641700073725,34.2434,142.52,142.44,27.66479]
[1641700074024,4.0,142.49,142.42,27.66479]
[1641700074225,4.0,142.49,142.36,7.02173226]
[1641700074424,4.0,142.49,142.37,32.6052]
[1641700074623,33.051,142.48,142.37,32.6052]
[1641700074825,27.66479,142.47,142.38,27.66479]
[1641700075426,31.66479,142.47,142.38,27.66479]
[1641700075628,27.66479,142.47,142.38,27.66479]
[1641700076025,27.66479,142.47,142.39,2.68500476]
[1641700078631,31.66479,142.47,142.39,2.68500476]
[1641700079331,31.66479,142.47,142.38,27.66479]
[1641700079532,27.66479,142.47,142.38,27.66479]
[1641700081033,33.051,142.48,142.38,27.66479]
[1641700081834,33.051,142.48,142.39,2.68040017]
[1641700082735,60.71579,142.48,142.39,2.68040017]
[1641700086738,64.71579,142.48,142.39,2.68040017]
[1641700087738,60.71579,142.48,142.39,2.68040017]
[1641700088739,33.051,142.48,142.39,2.68040017]
[1641700089441,60.71579,142.48,142.39,30.34519017]
[1641700090039,60.71579,142.48,142.4,2.68040017]
[1641700093644,4.0,142.47,142.4,2.68040017]
[1641700094143,4.0,142.45,142.4,2.68040017]
[1641700094343,4.0,142.45,142.39,27.66479]
[1641700094746,4.0,142.44,142.39,27.66479]
[1641700094944,10.808,142.44,142.39,27.66479]
[1641700095646,4.0,142.42,142.39,27.66479]
[1641700095847,4.0,142.41,142.31,27.4611]
[1641700096046,4.0,142.4,142.31,27.4611]
[1641700096445,4.0,142.39,142.31,27.4611]
[1641700096646,4.0,142.39,142.28,91.89854249]
[1641700096847,4.0,142.39,142.32,2.68537463]
[1641700097649,27.66479,142.37,142.32,2.68537463]
[1641700097848,35.98879,142.37,142.32,2.68537463]
[1641700098650,35.98879,142.37,142.28,40.82145674]
[1641700099654,35.98879,142.37,142.29,2.68537463]
[1641700099854,4.0,142.36,142.29,2.68537463]
[1641700100455,4.0,142.32,142.29,2.68537463]
[1641700100655,7.293,142.32,142.29,2.68537463]
[1641700101256,7.293,142.32,142.28,2.68537463]
[1641700101655,27.66479,142.3,142.28,2.68537463]
[1641700102258,27.66479,142.3,142.23,27.66479]
[1641700103757,27.66479,142.3,142.24,2.68537463]
[1641700104257,38.69738608,142.3,142.24,2.68537463]
[1641700104458,40.45338608,142.3,142.16,69.332]
[1641700105059,4.0,142.29,142.16,69.332]
[1641700105259,10.337,142.29,142.16,69.332]
[1641700105662,27.66479,142.26,142.17,40.76998928]
[1641700105861,34.56579,142.26,142.17,40.76998928]
[1641700106462,4.0,142.25,142.17,13.10519928]
[1641700106863,4.0,142.24,142.18,2.67483783]
[1641700107265,4.0,142.22,142.18,2.67483783]
[1641700107468,6.141,142.22,142.18,2.67483783]
[1641700107867,27.66479,142.19,142.18,2.67483783]
[1641700108267,35.28179,142.19,142.13,2.67483783]
[1641700109972,35.28179,142.19,142.11,27.66479]
[1641700112073,35.28179,142.19,142.11,31.66479]
[1641700112274,7.617,142.19,142.11,31.66479]
[1641700112475,7.617,142.19,142.11,27.66479]
[1641700113173,27.66479,142.21,142.11,27.66479]
[1641700113777,55.32958,142.21,142.11,27.66479]
[1641700117075,59.32958,142.21,142.11,27.66479]
[1641700117276,55.32958,142.21,142.11,27.66479]
[1641700118377,59.32958,142.21,142.11,27.66479]
[1641700118578,55.32958,142.21,142.11,27.66479]
[1641700119278,27.66479,142.21,142.15,4.0]
[1641700119479,6.901,142.26,142.12,7.03333802]
[1641700119681,6.901,142.26,142.16,11.03135986]
[1641700119879,6.901,142.26,142.18,27.66479]
[1641700120979,6.901,142.26,142.18,31.66479]
[1641700121781,6.901,142.26,142.19,4.0]
[1641700121978,6.901,142.26,142.21,27.66479]
[1641700122579,6.901,142.26,142.24,4.0]
[1641700122782,0.0001,142.26,142.23,4.0]
[1641700123280,10.42,142.34,142.24,4.0]
[1641700123480,7.02938282,142.37,142.25,4.0]
[1641700123780,35.2544,142.39,142.24,11.02740689]
[1641700123981,27.66479,142.37,142.27,27.66479]
[1641700125881,27.66479,142.37,142.24,34.69219689]
[1641700125882,27.66479,142.33,142.24,34.69219689]
[1641700126081,33.57379,142.33,142.24,34.69219689]
[1641700127885,33.57379,142.33,142.25,2.67083778]
[1641700131791,27.66479,142.33,142.25,2.67083778]
[1641700131991,17.757,142.37,142.32,27.66479]
[1641700132791,7.457,142.37,142.32,27.66479]
[1641700132994,14.80323237,142.39,142.32,27.66479]
[1641700132995,14.80323237,142.39,142.35,7.02197879]
[1641700133189,39.35301247,142.42,142.35,7.02197879]
[1641700133390,14.82977007,142.46,142.35,7.02197879]
[1641700133590,14.82977007,142.46,142.35,11.02197879]
[1641700133792,14.82977007,142.46,142.36,4.0]
[1641700133992,27.66479,142.45,142.38,27.66479]
[1641700134593,31.66479,142.45,142.38,27.66479]
[1641700134793,31.66479,142.45,142.35,7.02197879]
[1641700134993,38.73879,142.45,142.35,7.02197879]
[1641700135192,34.73879,142.45,142.32,27.66479]
[1641700135393,32.877,142.44,142.32,31.66479]
[1641700135795,32.877,142.44,142.33,4.0]
[1641700135995,27.66479,142.42,142.32,31.66479]
[1641700136194,33.78779,142.42,142.33,4.0]
[1641700136394,6.123,142.42,142.34,7.02247191]
[1641700137694,32.877,142.44,142.34,7.02247191]
[1641700137895,32.877,142.44,142.36,27.66479]
[1641700138495,4.0,142.42,142.36,27.66479]
[1641700138695,4.0,142.42,142.3,42.09954507]
[1641700138896,4.0,142.42,142.27,4.0]
[1641700139496,46.23911934,142.43,142.27,4.0]
[1641700139898,46.23911934,142.43,142.29,27.66479]
[1641700139899,27.66479,142.39,142.29,27.66479]
[1641700140097,35.77579,142.39,142.29,27.66479]
[1641700141997,63.44058,142.39,142.29,27.66479]
[1641700145100,8.111,142.39,142.32,4.0]
[1641700145301,32.877,142.44,142.31,4.0]
[1641700145502,32.877,142.44,142.3,7.02444507]
[1641700146004,27.66479,142.42,142.34,27.66479]
[1641700146403,27.66479,142.42,142.3,7.02444507]
[1641700148107,27.66479,142.37,142.3,7.02444507]
[1641700149809,27.66479,142.37,142.31,2.67923301]
[1641700150710,27.66479,142.37,142.31,6.67923301]
[1641700151312,27.66479,142.42,142.32,2.67923301]
[1641700152112,27.66479,142.36,142.3,2.67923301]
[1641700152311,34.76879,142.36,142.3,2.67923301]
[1641700153213,7.104,142.36,142.3,2.67923301]
[1641700153413,27.66479,142.42,142.3,6.67923301]
[1641700153819,27.66479,142.42,142.3,2.67923301]
[1641700154116,27.66479,142.39,142.3,2.67923301]
[1641700157520,27.66479,142.39,142.3,13.13943152]
[1641700159124,27.66479,142.39,142.3,17.13943152]
[1641700159322,27.66479,142.39,142.31,4.0]
[1641700159523,27.66479,142.42,142.31,4.0]
[1641700159824,27.66479,142.42,142.3,17.13943152]
[1641700160225,55.32958,142.42,142.3,17.13943152]
[1641700160424,55.32958,142.42,142.31,2.67923301]
[1641700161226,2.27792274,142.41,142.31,2.67923301]
[1641700162127,27.66479,142.39,142.32,27.66479]
[1641700163229,27.66479,142.39,142.33,2.67923301]
[1641700166333,55.32958,142.39,142.33,2.67923301]
[1641700166534,55.32958,142.39,142.29,27.66479]
[1641700166535,2.28416677,142.38,142.3,2.67923301]
[1641700168334,17.19416643,142.38,142.3,2.67923301]
[1641700169236,17.19416643,142.38,142.26,13.1715967]
[1641700169636,4.0,142.36,142.26,13.1715967]
[1641700169836,11.158,142.36,142.26,13.1715967]
[1641700170037,11.158,142.36,142.26,2.67923301]
[1641700170239,27.66479,142.31,142.26,2.67923301]
[1641700171040,27.66479,142.31,142.24,2.67923301]
[1641700171240,4.0,142.3,142.24,2.67923301]
[1641700171543,31.66479,142.31,142.24,2.67923301]
[1641700171743,4.0,142.3,142.22,2.67923301]
[1641700172139,27.66479,142.31,142.22,2.67923301]
[1641700172344,27.66479,142.26,142.22,2.67923301]
[1641700172540,35.19379,142.26,142.22,2.67923301]
[1641700172839,7.529,142.26,142.18,27.66479]
[1641700173845,27.66479,142.31,142.18,31.66479]
[1641700174043,27.66479,142.31,142.19,2.67923301]
[1641700174340,27.66479,142.28,142.19,6.67923301]
[1641700174842,27.66479,142.28,142.19,2.67923301]
[1641700175041,34.32179,142.28,142.19,2.67923301]
[1641700175442,34.32179,142.28,142.2,2.67923301]
[1641700176545,34.32179,142.28,142.19,2.67923301]
[1641700178444,34.32179,142.28,142.19,13.1715967]
[1641700179847,34.32179,142.28,142.19,2.67923301]
[1641700182347,61.98658,142.28,142.19,2.67923301]
[1641700185847,61.98658,142.28,142.19,6.67923301]
[1641700186048,61.98658,142.28,142.19,2.67923301]
[1641700186749,61.98658,142.28,142.2,6.67923301]
[1641700186949,61.98658,142.28,142.2,2.67923301]
[1641700187148,61.98658,142.28,142.2,6.67923301]
[1641700187748,61.98658,142.28,142.2,2.67923301]
[1641700188150,61.98658,142.28,142.2,6.67923301]
[1641700188450,6.657,142.28,142.22,27.66479]
[1641700188750,34.7149,142.3,142.22,27.66479]